[Event "*** Titled Tuesday Blitz"]
[Site "Chess.com"]
[Date "2021.03.09"]
[Round "9"]
[White "jannat65"]
[Black "tylityli"]
[Result "0-1"]
[WhiteElo "1976"]
[BlackElo "2258"]
[TimeControl "180+1"]
[EndTime "11:47:36 PST"]
[Termination "tylityli won by resignation"]

1. e4 {[%clk 0:03:00.9]} 1... e5 {[%clk 0:02:59.4]} 2. Nf3 {[%clk 0:03:01.1]}
2... Nc6 {[%clk 0:02:58.7]} 3. d4 {[%clk 0:03:01.6]} 3... exd4 {[%clk
0:02:58.5]} 4. Nxd4 {[%clk 0:03:01.9]} 4... Nf6 {[%clk 0:02:58.7]} 5. Nc3 {[%clk
0:03:00.3]} 5... Bb4 {[%clk 0:02:57.3]} 6. Bg5 {[%clk 0:02:53.3]} 6... h6 {[%clk
0:02:49.4]} 7. Bxf6 {[%clk 0:02:36.4]} 7... Qxf6 {[%clk 0:02:47.4]} 8. Nxc6
{[%clk 0:02:33.9]} 8... Bxc3+ {[%clk 0:02:41.1]} 9. Ke2 {[%clk 0:02:14.8]} 9...
Qxc6 {[%clk 0:02:37.3]} 10. bxc3 {[%clk 0:02:13.5]} 10... Qxe4+ {[%clk
0:02:30.5]} 11. Kd2 {[%clk 0:02:10.1]} 11... Qf4+ {[%clk 0:02:28.6]} 12. Ke2
{[%clk 0:02:01.2]} 12... O-O {[%clk 0:02:26.5]} 13. f3 {[%clk 0:01:50.5]} 13...
Re8+ {[%clk 0:02:25.7]} 14. Kf2 {[%clk 0:01:50.3]} 14... Qe3+ {[%clk 0:02:25.6]}
15. Kg3 {[%clk 0:01:48.2]} 15... d5 {[%clk 0:02:15.3]} 16. Bd3 {[%clk
0:01:44.5]} 16... c5 {[%clk 0:01:56.3]} 17. Re1 {[%clk 0:01:38.3]} 17... Qg5+
{[%clk 0:01:50.9]} 18. Kf2 {[%clk 0:01:36.2]} 18... Bf5 {[%clk 0:01:45.6]} 19.
Bb5 {[%clk 0:01:25.7]} 19... Rxe1 {[%clk 0:01:38]} 20. Qxe1 {[%clk 0:01:25.9]}
20... Bxc2 {[%clk 0:01:35.4]} 21. Rc1 {[%clk 0:01:17.7]} 21... Bg6 {[%clk
0:01:27.1]} 22. Rd1 {[%clk 0:01:05.2]} 22... Rd8 {[%clk 0:01:26.2]} 23. Bd3
{[%clk 0:00:48.1]} 23... d4 {[%clk 0:01:19.7]} 24. cxd4 {[%clk 0:00:45.8]} 24...
cxd4 {[%clk 0:01:15.7]} 25. Bxg6 {[%clk 0:00:43]} 25... Qxg6 {[%clk 0:01:10.3]}
26. Qe7 {[%clk 0:00:37.9]} 26... Qc2+ {[%clk 0:01:08.1]} 27. Ke1 {[%clk
0:00:29.5]} 27... Qc8 {[%clk 0:00:50.9]} 28. Qe4 {[%clk 0:00:25.4]} 28... Re8
{[%clk 0:00:48.7]} 29. Rxd4 {[%clk 0:00:20.7]} 29... Rxe4+ {[%clk 0:00:47.3]}
30. Rxe4 {[%clk 0:00:21.6]} 30... Qc1+ {[%clk 0:00:45.9]} 31. Kf2 {[%clk
0:00:20.9]} 31... Qc5+ {[%clk 0:00:45.7]} 32. Kf1 {[%clk 0:00:19.6]} 32... b5
{[%clk 0:00:44.2]} 33. Re2 {[%clk 0:00:19.1]} 33... a5 {[%clk 0:00:43.6]} 34.
Rd2 {[%clk 0:00:18.4]} 34... Qc4+ {[%clk 0:00:43.2]} 35. Kf2 {[%clk 0:00:17.9]}
35... b4 {[%clk 0:00:44.1]} 36. Rd8+ {[%clk 0:00:16.7]} 36... Kh7 {[%clk
0:00:43.6]} 37. Rd2 {[%clk 0:00:17.6]} 37... a4 {[%clk 0:00:43]} 38. Rb2 {[%clk
0:00:17.9]} 38... Qd4+ {[%clk 0:00:41.6]} 39. Ke2 {[%clk 0:00:17]} 39... Qxb2+
{[%clk 0:00:42.5]} 40. Kf1 {[%clk 0:00:17.7]} 40... Qxa2 {[%clk 0:00:43.2]} 41.
g3 {[%clk 0:00:17.5]} 41... b3 {[%clk 0:00:44.1]} 42. f4 {[%clk 0:00:18.4]}
42... Qc2 {[%clk 0:00:43.9]} 43. g4 {[%clk 0:00:18.9]} 43... b2 {[%clk
0:00:44.8]} 0-1

[Event "*** Titled Tuesday Blitz"]
[Site "Chess.com"]
[Date "2021.03.09"]
[Round "9"]
[White "MrrRefrao"]
[Black "lindsay790"]
[Result "0-1"]
[WhiteElo "2358"]
[BlackElo "2205"]
[TimeControl "180+1"]
[EndTime "11:47:36 PST"]
[Termination "lindsay790 won on time"]

1. e4 {[%clk 0:03:00.9]} 1... c5 {[%clk 0:02:59.3]} 2. Nf3 {[%clk 0:03:01.8]}
2... d6 {[%clk 0:02:59.1]} 3. d4 {[%clk 0:03:02.5]} 3... cxd4 {[%clk 0:02:59.3]}
4. Nxd4 {[%clk 0:03:03.4]} 4... Nf6 {[%clk 0:02:59.7]} 5. Nc3 {[%clk 0:03:04.3]}
5... g6 {[%clk 0:03:00.1]} 6. Be3 {[%clk 0:03:04.2]} 6... Bg7 {[%clk 0:03:00.4]}
7. f3 {[%clk 0:03:04.4]} 7... a6 {[%clk 0:03:00.8]} 8. Qd2 {[%clk 0:03:05.3]}
8... b5 {[%clk 0:03:00.9]} 9. g4 {[%clk 0:03:00.5]} 9... Qc7 {[%clk 0:02:59.3]}
10. h4 {[%clk 0:02:57.2]} 10... Nbd7 {[%clk 0:02:56.7]} 11. h5 {[%clk
0:02:54.7]} 11... Bb7 {[%clk 0:02:51]} 12. h6 {[%clk 0:02:39.1]} 12... Bf8
{[%clk 0:02:50.8]} 13. a3 {[%clk 0:02:39.6]} 13... Ne5 {[%clk 0:02:50.4]} 14.
O-O-O {[%clk 0:02:31.3]} 14... Nfd7 {[%clk 0:02:35.6]} 15. Nd5 {[%clk
0:02:15.2]} 15... Bxd5 {[%clk 0:02:34.5]} 16. exd5 {[%clk 0:02:16.1]} 16... Nb6
{[%clk 0:02:33.4]} 17. Nc6 {[%clk 0:02:02]} 17... Nxc6 {[%clk 0:02:14.1]} 18.
dxc6 {[%clk 0:02:01.9]} 18... Qxc6 {[%clk 0:02:07.9]} 19. Qd4 {[%clk 0:02:01.8]}
19... Rc8 {[%clk 0:01:49.9]} 20. Bd3 {[%clk 0:01:04.1]} 20... Nc4 {[%clk
0:01:28.9]} 21. Qxh8 {[%clk 0:00:42.3]} 21... Nxe3 {[%clk 0:01:28.7]} 22. Rd2
{[%clk 0:00:41.5]} 22... Qxf3 {[%clk 0:01:27.4]} 23. Re1 {[%clk 0:00:39.7]}
23... Nxg4 {[%clk 0:00:57]} 24. Rde2 {[%clk 0:00:23.8]} 24... e5 {[%clk
0:00:55.1]} 25. Be4 {[%clk 0:00:19.9]} 25... Qf4+ {[%clk 0:00:54.1]} 26. Kb1
{[%clk 0:00:19.7]} 26... Nf6 {[%clk 0:00:37.3]} 27. Bb7 {[%clk 0:00:15.1]} 27...
Rd8 {[%clk 0:00:19.1]} 28. Bxa6 {[%clk 0:00:14.9]} 28... Ke7 {[%clk 0:00:18.9]}
0-1

[Event "*** Titled Tuesday Blitz"]
[Site "Chess.com"]
[Date "2021.03.09"]
[Round "9"]
[White "Haykoooo0o"]
[Black "kekic76"]
[Result "1/2-1/2"]
[WhiteElo "2487"]
[BlackElo "2366"]
[TimeControl "180+1"]
[EndTime "11:47:37 PST"]
[Termination "Game drawn by repetition"]

1. d4 {[%clk 0:02:52.1]} 1... d6 {[%clk 0:02:59.6]} 2. Nf3 {[%clk 0:02:50]} 2...
Nc6 {[%clk 0:02:59.1]} 3. Bf4 {[%clk 0:02:43.1]} 3... g6 {[%clk 0:02:57.3]} 4.
h3 {[%clk 0:02:43.4]} 4... Bg7 {[%clk 0:02:57.4]} 5. e3 {[%clk 0:02:44.1]} 5...
e5 {[%clk 0:02:57.3]} 6. Bh2 {[%clk 0:02:43.6]} 6... exd4 {[%clk 0:02:54.3]} 7.
exd4 {[%clk 0:02:44.5]} 7... Nge7 {[%clk 0:02:52.9]} 8. c3 {[%clk 0:02:44.9]}
8... O-O {[%clk 0:02:52]} 9. Be2 {[%clk 0:02:45.5]} 9... Re8 {[%clk 0:02:52]}
10. O-O {[%clk 0:02:46]} 10... Bf5 {[%clk 0:02:51.9]} 11. Nbd2 {[%clk
0:02:46.4]} 11... a6 {[%clk 0:02:47.2]} 12. Re1 {[%clk 0:02:45.9]} 12... h6
{[%clk 0:02:43.6]} 13. Qb3 {[%clk 0:02:43.9]} 13... Qc8 {[%clk 0:02:40.7]} 14.
Rac1 {[%clk 0:02:41.3]} 14... Be6 {[%clk 0:02:36.3]} 15. Qd1 {[%clk 0:02:39.4]}
15... Bf5 {[%clk 0:02:30.7]} 16. Nc4 {[%clk 0:02:32.1]} 16... g5 {[%clk
0:02:28.3]} 17. Ne3 {[%clk 0:02:31.8]} 17... Bg6 {[%clk 0:02:27.9]} 18. Bd3
{[%clk 0:02:27.7]} 18... Nf5 {[%clk 0:02:21]} 19. Nxf5 {[%clk 0:02:22.9]} 19...
Rxe1+ {[%clk 0:02:18.7]} 20. Qxe1 {[%clk 0:02:16.4]} 20... Bxf5 {[%clk
0:02:18.8]} 21. Bc4 {[%clk 0:02:13.1]} 21... Qd7 {[%clk 0:02:14.2]} 22. Qd2
{[%clk 0:02:05.5]} 22... Re8 {[%clk 0:02:12.9]} 23. Re1 {[%clk 0:02:05.4]} 23...
b5 {[%clk 0:02:00.5]} 24. Bf1 {[%clk 0:01:56.7]} 24... Rxe1 {[%clk 0:01:54.6]}
25. Qxe1 {[%clk 0:01:55.9]} 25... Qe7 {[%clk 0:01:54.8]} 26. Qxe7 {[%clk
0:01:51.6]} 26... Nxe7 {[%clk 0:01:55.7]} 27. a4 {[%clk 0:01:52.2]} 27... Bd7
{[%clk 0:01:49.8]} 28. axb5 {[%clk 0:01:47.5]} 28... axb5 {[%clk 0:01:49.6]} 29.
Bd3 {[%clk 0:01:42.4]} 29... Bc6 {[%clk 0:01:44.8]} 30. Kf1 {[%clk 0:01:37.1]}
30... b4 {[%clk 0:01:26.8]} 31. Nd2 {[%clk 0:01:32.3]} 31... bxc3 {[%clk
0:01:26.1]} 32. bxc3 {[%clk 0:01:33.2]} 32... Kf8 {[%clk 0:01:12.9]} 33. Be4
{[%clk 0:01:29.8]} 33... Bxe4 {[%clk 0:01:10.8]} 34. Nxe4 {[%clk 0:01:30.7]}
34... Nd5 {[%clk 0:01:07.4]} 35. c4 {[%clk 0:01:27.3]} 35... Nf6 {[%clk
0:01:00.5]} 36. Nxf6 {[%clk 0:01:22]} 36... Bxf6 {[%clk 0:01:01.4]} 37. d5
{[%clk 0:01:19.5]} 37... Bd4 {[%clk 0:00:57.5]} 38. f3 {[%clk 0:01:18.8]} 38...
Ke7 {[%clk 0:00:54.9]} 39. Ke2 {[%clk 0:01:19.3]} 39... f5 {[%clk 0:00:51.1]}
40. g4 {[%clk 0:01:18.7]} 40... Kf6 {[%clk 0:00:45.7]} 41. gxf5 {[%clk
0:01:15.4]} 41... Kxf5 {[%clk 0:00:45.6]} 42. Kd3 {[%clk 0:01:16.1]} 42... Bb6
{[%clk 0:00:42.9]} 43. Bg3 {[%clk 0:01:15.3]} 43... h5 {[%clk 0:00:39.5]} 44.
Bh2 {[%clk 0:01:12.3]} 44... Bc5 {[%clk 0:00:37.5]} 45. Bg3 {[%clk 0:01:12.2]}
45... Bb6 {[%clk 0:00:37.5]} 46. Ke2 {[%clk 0:01:08]} 46... Bc5 {[%clk
0:00:34.8]} 47. Bh2 {[%clk 0:00:58.8]} 47... Bb6 {[%clk 0:00:33.5]} 48. Bg3
{[%clk 0:00:58.8]} 48... Bc5 {[%clk 0:00:33.4]} 49. Bh2 {[%clk 0:00:59.2]} 49...
Bb6 {[%clk 0:00:33.4]} 50. Bg3 {[%clk 0:00:42.9]} 1/2-1/2

[Event "*** Titled Tuesday Blitz"]
[Site "Chess.com"]
[Date "2021.03.09"]
[Round "9"]
[White "ShcufNaiRolf"]
[Black "coco_crc"]
[Result "0-1"]
[WhiteElo "2350"]
[BlackElo "2224"]
[TimeControl "180+1"]
[EndTime "11:47:37 PST"]
[Termination "coco_crc won by checkmate"]

1. e4 {[%clk 0:03:00.9]} 1... e5 {[%clk 0:02:59.9]} 2. Nf3 {[%clk 0:02:59.3]}
2... Nc6 {[%clk 0:03:00]} 3. Bb5 {[%clk 0:02:59.1]} 3... a6 {[%clk 0:02:59.6]}
4. Ba4 {[%clk 0:02:59.5]} 4... Nf6 {[%clk 0:03:00]} 5. O-O {[%clk 0:02:59.8]}
5... Be7 {[%clk 0:02:59.3]} 6. Re1 {[%clk 0:02:59.7]} 6... b5 {[%clk 0:02:59.3]}
7. Bb3 {[%clk 0:03:00.1]} 7... d6 {[%clk 0:02:59.9]} 8. c3 {[%clk 0:02:53.5]}
8... O-O {[%clk 0:02:59.8]} 9. h3 {[%clk 0:02:53.8]} 9... Na5 {[%clk 0:02:59.3]}
10. Bc2 {[%clk 0:02:53.4]} 10... d5 {[%clk 0:02:59.9]} 11. exd5 {[%clk
0:02:49.6]} 11... e4 {[%clk 0:03:00.8]} 12. Nd4 {[%clk 0:02:41.3]} 12... Qxd5
{[%clk 0:02:58.9]} 13. d3 {[%clk 0:02:30.2]} 13... exd3 {[%clk 0:02:50.9]} 14.
Qxd3 {[%clk 0:02:29.7]} 14... Bb7 {[%clk 0:02:45.4]} 15. f3 {[%clk 0:02:10.3]}
15... Rfe8 {[%clk 0:02:40.1]} 16. Be3 {[%clk 0:01:56.2]} 16... Nc4 {[%clk
0:02:37.3]} 17. Bc1 {[%clk 0:01:54]} 17... Bc5 {[%clk 0:02:27.9]} 18. Rf1 {[%clk
0:01:45.1]} 18... Ne5 {[%clk 0:02:05.2]} 19. Qd1 {[%clk 0:01:41.9]} 19... Rad8
{[%clk 0:02:01.1]} 20. Nd2 {[%clk 0:01:30.6]} 20... Bxd4+ {[%clk 0:01:54.6]} 21.
cxd4 {[%clk 0:01:30.5]} 21... Qxd4+ {[%clk 0:01:55.5]} 22. Kh1 {[%clk
0:01:26.6]} 22... Nc4 {[%clk 0:00:59.4]} 23. Nb3 {[%clk 0:00:54.8]} 23... Qh4
{[%clk 0:00:53.3]} 24. Bd3 {[%clk 0:00:48.2]} 24... Nh5 {[%clk 0:00:27]} 25. Rg1
{[%clk 0:00:32]} 25... Ne3 {[%clk 0:00:20.4]} 26. Bxe3 {[%clk 0:00:30.8]} 26...
Rxe3 {[%clk 0:00:21.3]} 27. Nc5 {[%clk 0:00:31.2]} 27... Ng3+ {[%clk 0:00:15.7]}
28. Kh2 {[%clk 0:00:31.7]} 28... Qf4 {[%clk 0:00:15.8]} 29. Bxh7+ {[%clk
0:00:15.6]} 29... Kxh7 {[%clk 0:00:12.7]} 30. Qxd8 {[%clk 0:00:12.8]} 30... Nf1+
{[%clk 0:00:12.6]} 31. Kh1 {[%clk 0:00:13.1]} 31... Qh2# {[%clk 0:00:13.5]} 0-1

[Event "*** Titled Tuesday Blitz"]
[Site "Chess.com"]
[Date "2021.03.09"]
[Round "9"]
[White "moro182"]
[Black "exoticprincess"]
[Result "0-1"]
[WhiteElo "2709"]
[BlackElo "2876"]
[TimeControl "180+1"]
[EndTime "11:47:39 PST"]
[Termination "exoticprincess won by resignation"]

1. d4 {[%clk 0:02:56.5]} 1... Nf6 {[%clk 0:02:52.2]} 2. c4 {[%clk 0:02:52.1]}
2... c5 {[%clk 0:02:47.5]} 3. Nf3 {[%clk 0:02:51.3]} 3... e6 {[%clk 0:02:47.4]}
4. Nc3 {[%clk 0:02:46]} 4... d5 {[%clk 0:02:45]} 5. cxd5 {[%clk 0:02:44.1]} 5...
Nxd5 {[%clk 0:02:45]} 6. e4 {[%clk 0:02:43.6]} 6... Nxc3 {[%clk 0:02:45.2]} 7.
bxc3 {[%clk 0:02:44.5]} 7... cxd4 {[%clk 0:02:46.1]} 8. cxd4 {[%clk 0:02:45]}
8... Bb4+ {[%clk 0:02:46.8]} 9. Bd2 {[%clk 0:02:45.5]} 9... Bxd2+ {[%clk
0:02:47.7]} 10. Qxd2 {[%clk 0:02:46]} 10... O-O {[%clk 0:02:48.6]} 11. Rc1
{[%clk 0:02:46.5]} 11... Nd7 {[%clk 0:02:48]} 12. Bd3 {[%clk 0:02:44.3]} 12...
b6 {[%clk 0:02:46.9]} 13. O-O {[%clk 0:02:41.2]} 13... Bb7 {[%clk 0:02:47]} 14.
Qf4 {[%clk 0:02:36.7]} 14... h6 {[%clk 0:02:40.7]} 15. d5 {[%clk 0:02:20.4]}
15... exd5 {[%clk 0:02:35.3]} 16. e5 {[%clk 0:02:06.4]} 16... Nc5 {[%clk
0:02:32.7]} 17. Bb1 {[%clk 0:01:53.3]} 17... Rc8 {[%clk 0:02:20.8]} 18. Nd4
{[%clk 0:01:49.8]} 18... Qg5 {[%clk 0:02:15.9]} 19. Qxg5 {[%clk 0:01:23.9]}
19... hxg5 {[%clk 0:02:16.8]} 20. Nf5 {[%clk 0:01:24.4]} 20... Rc7 {[%clk
0:02:16.2]} 21. Rfd1 {[%clk 0:01:20.7]} 21... Rd8 {[%clk 0:02:14.8]} 22. Nd6
{[%clk 0:01:16.1]} 22... Bc6 {[%clk 0:02:06.6]} 23. Nf5 {[%clk 0:00:54]} 23...
Re8 {[%clk 0:01:56]} 24. Re1 {[%clk 0:00:49.8]} 24... Bd7 {[%clk 0:01:53.4]} 25.
Nd6 {[%clk 0:00:43.3]} 25... Re7 {[%clk 0:01:51.1]} 26. g3 {[%clk 0:00:34.2]}
26... g4 {[%clk 0:01:48.8]} 27. Bf5 {[%clk 0:00:29.1]} 27... Bxf5 {[%clk
0:01:40.1]} 28. Nxf5 {[%clk 0:00:30]} 28... Red7 {[%clk 0:01:41]} 29. Rcd1
{[%clk 0:00:27.9]} 29... Ne6 {[%clk 0:01:21.5]} 30. Rd2 {[%clk 0:00:20.1]} 30...
Ng5 {[%clk 0:01:10.2]} 31. Nd4 {[%clk 0:00:19.8]} 31... Rc4 {[%clk 0:01:09.3]}
32. Red1 {[%clk 0:00:18.8]} 32... Re7 {[%clk 0:01:01.8]} 33. Nf5 {[%clk
0:00:09.9]} 33... Nf3+ {[%clk 0:00:58.4]} 34. Kg2 {[%clk 0:00:09.5]} 34... Rxe5
{[%clk 0:00:58.6]} 35. Ne3 {[%clk 0:00:04.7]} 35... Nxd2 {[%clk 0:00:56.9]} 36.
Rxd2 {[%clk 0:00:05.6]} 36... Rc5 {[%clk 0:00:50.2]} 37. Nxg4 {[%clk 0:00:04.8]}
37... Re4 {[%clk 0:00:48.3]} 38. Ne3 {[%clk 0:00:04.5]} 38... d4 {[%clk
0:00:47]} 39. Nc2 {[%clk 0:00:05]} 39... d3 {[%clk 0:00:45.3]} 40. Ne3 {[%clk
0:00:04.2]} 40... Rxe3 {[%clk 0:00:43.1]} 41. fxe3 {[%clk 0:00:03.3]} 41... Rc2
{[%clk 0:00:43]} 0-1

[Event "*** Titled Tuesday Blitz"]
[Site "Chess.com"]
[Date "2021.03.09"]
[Round "9"]
[White "Tekushka"]
[Black "paulrusan"]
[Result "1-0"]
[WhiteElo "2457"]
[BlackElo "2311"]
[TimeControl "180+1"]
[EndTime "11:47:41 PST"]
[Termination "Tekushka won on time"]

1. e4 {[%clk 0:03:00.9]} 1... c5 {[%clk 0:00:57.6]} 2. Nf3 {[%clk 0:03:00.2]}
2... Nc6 {[%clk 0:00:57.5]} 3. Bb5 {[%clk 0:02:59.1]} 3... g6 {[%clk 0:00:56.9]}
4. Bxc6 {[%clk 0:02:54.9]} 4... dxc6 {[%clk 0:00:57.1]} 5. d3 {[%clk 0:02:48.4]}
5... Bg7 {[%clk 0:00:55.7]} 6. Nc3 {[%clk 0:02:48]} 6... Bg4 {[%clk 0:00:54.8]}
7. h3 {[%clk 0:02:40]} 7... Bxf3 {[%clk 0:00:54.9]} 8. Qxf3 {[%clk 0:02:40.1]}
8... e5 {[%clk 0:00:55.5]} 9. Be3 {[%clk 0:02:38.5]} 9... b6 {[%clk 0:00:55.8]}
10. Qe2 {[%clk 0:02:32.2]} 10... Ne7 {[%clk 0:00:51.7]} 11. h4 {[%clk 0:02:28]}
11... O-O {[%clk 0:00:49.3]} 12. h5 {[%clk 0:02:26]} 12... f5 {[%clk 0:00:49.4]}
13. hxg6 {[%clk 0:02:24.3]} 13... hxg6 {[%clk 0:00:49.3]} 14. Bg5 {[%clk
0:02:22.9]} 14... Qd6 {[%clk 0:00:47.5]} 15. Qe3 {[%clk 0:02:16.5]} 15... f4
{[%clk 0:00:39.1]} 16. Qh3 {[%clk 0:02:13.4]} 16... Kf7 {[%clk 0:00:39.5]} 17.
O-O-O {[%clk 0:02:08]} 17... Rh8 {[%clk 0:00:39.6]} 18. Qg4 {[%clk 0:02:08]}
18... Qe6 {[%clk 0:00:38]} 19. Qf3 {[%clk 0:02:04.8]} 19... Bf6 {[%clk 0:00:33]}
20. Bxf6 {[%clk 0:01:53.9]} 20... Qxf6 {[%clk 0:00:33.3]} 21. Ne2 {[%clk
0:01:38.6]} 21... Rxh1 {[%clk 0:00:33]} 22. Rxh1 {[%clk 0:01:37.8]} 22... Rh8
{[%clk 0:00:33.4]} 23. Rh3 {[%clk 0:01:34.4]} 23... Rxh3 {[%clk 0:00:31]} 24.
Qxh3 {[%clk 0:01:34.4]} 24... f3 {[%clk 0:00:25.3]} 25. Qxf3 {[%clk 0:01:27.4]}
25... Qxf3 {[%clk 0:00:25.4]} 26. gxf3 {[%clk 0:01:27.1]} 26... Kf6 {[%clk
0:00:22.7]} 27. f4 {[%clk 0:01:23.3]} 27... exf4 {[%clk 0:00:22.5]} 28. Nxf4
{[%clk 0:01:23.3]} 28... Ke5 {[%clk 0:00:20.2]} 29. Ne2 {[%clk 0:01:21.7]} 29...
g5 {[%clk 0:00:20.2]} 30. Kd2 {[%clk 0:01:21.9]} 30... Ng6 {[%clk 0:00:19.7]}
31. Ke3 {[%clk 0:01:21.1]} 31... b5 {[%clk 0:00:17.1]} 32. c3 {[%clk 0:01:06.8]}
32... a5 {[%clk 0:00:13.3]} 33. d4+ {[%clk 0:01:06.6]} 33... cxd4+ {[%clk
0:00:13.7]} 34. cxd4+ {[%clk 0:01:06.7]} 34... Ke6 {[%clk 0:00:14.1]} 35. f4
{[%clk 0:01:04.3]} 35... gxf4+ {[%clk 0:00:09.7]} 36. Nxf4+ {[%clk 0:01:04.1]}
36... Nxf4 {[%clk 0:00:10.3]} 37. Kxf4 {[%clk 0:01:04.4]} 37... Kd6 {[%clk
0:00:08]} 38. Kf5 {[%clk 0:01:00.5]} 38... c5 {[%clk 0:00:08.2]} 39. dxc5+
{[%clk 0:00:59.2]} 39... Kxc5 {[%clk 0:00:08.6]} 40. e5 {[%clk 0:00:59.5]} 40...
Kc4 {[%clk 0:00:07.3]} 41. e6 {[%clk 0:00:59.7]} 41... Kd3 {[%clk 0:00:07.6]}
42. e7 {[%clk 0:01:00]} 42... Kc2 {[%clk 0:00:08]} 43. e8=Q {[%clk 0:01:00.2]}
43... b4 {[%clk 0:00:06.7]} 44. Qa4+ {[%clk 0:00:59]} 44... Kxb2 {[%clk
0:00:06.6]} 45. Qxa5 {[%clk 0:00:59.3]} 45... Ka1 {[%clk 0:00:02.3]} 46. Qxb4
{[%clk 0:00:57.4]} 46... Kxa2 {[%clk 0:00:02]} 47. Ke4 {[%clk 0:00:57.6]} 47...
Ka1 {[%clk 0:00:01.8]} 48. Kd3 {[%clk 0:00:57.8]} 1-0

[Event "*** Titled Tuesday Blitz"]
[Site "Chess.com"]
[Date "2021.03.09"]
[Round "9"]
[White "imdvb6307"]
[Black "Frogo47"]
[Result "1-0"]
[WhiteElo "2391"]
[BlackElo "2511"]
[TimeControl "180+1"]
[EndTime "11:47:43 PST"]
[Termination "imdvb6307 won on time"]

1. e4 {[%clk 0:03:00.9]} 1... c5 {[%clk 0:02:59.5]} 2. Nf3 {[%clk 0:03:00.6]}
2... d6 {[%clk 0:02:59.9]} 3. Bb5+ {[%clk 0:03:00.1]} 3... Nd7 {[%clk
0:02:59.5]} 4. c4 {[%clk 0:02:58.1]} 4... a6 {[%clk 0:02:49.9]} 5. Bxd7+ {[%clk
0:02:58]} 5... Bxd7 {[%clk 0:02:48.8]} 6. d4 {[%clk 0:02:56.8]} 6... cxd4 {[%clk
0:02:48.5]} 7. Nxd4 {[%clk 0:02:56.9]} 7... Nf6 {[%clk 0:02:47.3]} 8. f3 {[%clk
0:02:54.4]} 8... g6 {[%clk 0:02:20.5]} 9. O-O {[%clk 0:02:46.9]} 9... Bg7 {[%clk
0:02:20.7]} 10. b3 {[%clk 0:02:46.5]} 10... O-O {[%clk 0:02:20.4]} 11. Bb2
{[%clk 0:02:46]} 11... Rc8 {[%clk 0:02:20.5]} 12. Nc3 {[%clk 0:02:43.7]} 12...
Re8 {[%clk 0:02:18.9]} 13. Qd2 {[%clk 0:02:38.2]} 13... Qa5 {[%clk 0:02:17.5]}
14. Rfd1 {[%clk 0:02:36.5]} 14... b5 {[%clk 0:02:10.6]} 15. cxb5 {[%clk
0:02:16.6]} 15... axb5 {[%clk 0:02:10.5]} 16. Ncxb5 {[%clk 0:02:15.8]} 16... Qb6
{[%clk 0:02:10.6]} 17. a4 {[%clk 0:01:42]} 17... e5 {[%clk 0:01:36.4]} 18. Kh1
{[%clk 0:01:39]} 18... exd4 {[%clk 0:01:35.4]} 19. Bxd4 {[%clk 0:01:32.9]} 19...
Qa6 {[%clk 0:01:35]} 20. Nc3 {[%clk 0:01:08.2]} 20... Rc6 {[%clk 0:00:55.1]} 21.
b4 {[%clk 0:01:07.2]} 21... Rc4 {[%clk 0:00:52.4]} 22. b5 {[%clk 0:01:06.4]}
22... Qa8 {[%clk 0:00:18.2]} 23. a5 {[%clk 0:01:04.9]} 23... Rxc3 {[%clk
0:00:16.4]} 24. Qxc3 {[%clk 0:01:03.8]} 24... Qd8 {[%clk 0:00:14.2]} 25. b6
{[%clk 0:00:59.3]} 25... d5 {[%clk 0:00:12.5]} 26. exd5 {[%clk 0:00:57.9]} 26...
Nxd5 {[%clk 0:00:11.5]} 27. Qb2 {[%clk 0:00:56.7]} 27... Bh6 {[%clk 0:00:08]}
28. b7 {[%clk 0:00:53.6]} 28... Qb8 {[%clk 0:00:05.1]} 29. a6 {[%clk 0:00:47.8]}
29... Bc6 {[%clk 0:00:05.4]} 30. Bf2 {[%clk 0:00:35.5]} 30... Bf4 {[%clk
0:00:04.9]} 31. Bg3 {[%clk 0:00:26.4]} 31... Bxg3 {[%clk 0:00:04.3]} 32. hxg3
{[%clk 0:00:26.9]} 32... Qxg3 {[%clk 0:00:05.1]} 33. a7 {[%clk 0:00:26.4]} 33...
Qh4+ {[%clk 0:00:03.9]} 34. Kg1 {[%clk 0:00:26.5]} 34... Nf4 {[%clk 0:00:03.8]}
35. b8=Q {[%clk 0:00:24.9]} 1-0

[Event "*** Titled Tuesday Blitz"]
[Site "Chess.com"]
[Date "2021.03.09"]
[Round "9"]
[White "profofchess"]
[Black "KetiGrant"]
[Result "1-0"]
[WhiteElo "2494"]
[BlackElo "2352"]
[TimeControl "180+1"]
[EndTime "11:47:44 PST"]
[Termination "profofchess won by resignation"]

1. e4 {[%clk 0:03:00.9]} 1... c5 {[%clk 0:02:59.3]} 2. Nf3 {[%clk 0:03:00.4]}
2... Nc6 {[%clk 0:02:59.4]} 3. Bb5 {[%clk 0:02:59.4]} 3... g6 {[%clk 0:02:58.9]}
4. O-O {[%clk 0:02:57.7]} 4... Bg7 {[%clk 0:02:58.5]} 5. Re1 {[%clk 0:02:57.2]}
5... Nf6 {[%clk 0:02:57]} 6. e5 {[%clk 0:02:57.2]} 6... Nd5 {[%clk 0:02:56.5]}
7. Nc3 {[%clk 0:02:57.3]} 7... Nc7 {[%clk 0:02:55.2]} 8. Bxc6 {[%clk 0:02:56.7]}
8... dxc6 {[%clk 0:02:54]} 9. Ne4 {[%clk 0:02:56.2]} 9... Ne6 {[%clk 0:02:52.6]}
10. d3 {[%clk 0:02:53.6]} 10... O-O {[%clk 0:02:49.7]} 11. Be3 {[%clk
0:02:52.9]} 11... b6 {[%clk 0:02:48.9]} 12. Qd2 {[%clk 0:02:53.2]} 12... Qd5
{[%clk 0:02:30.9]} 13. Bh6 {[%clk 0:02:47.5]} 13... c4 {[%clk 0:02:17.7]} 14.
Nc3 {[%clk 0:02:28.7]} 14... Qc5 {[%clk 0:01:44.7]} 15. Bxg7 {[%clk 0:01:51.6]}
15... Kxg7 {[%clk 0:01:43.3]} 16. d4 {[%clk 0:01:51.8]} 16... Qa5 {[%clk
0:01:41.8]} 17. Qe3 {[%clk 0:01:34.3]} 17... Nc7 {[%clk 0:01:34.8]} 18. h4
{[%clk 0:01:04.1]} 18... Bg4 {[%clk 0:01:31]} 19. Nh2 {[%clk 0:01:04.1]} 19...
Be6 {[%clk 0:01:24.7]} 20. h5 {[%clk 0:01:03.8]} 20... Nd5 {[%clk 0:01:18.9]}
21. Nxd5 {[%clk 0:01:03.1]} 21... Qxd5 {[%clk 0:01:17.6]} 22. h6+ {[%clk
0:00:59.8]} 22... Kh8 {[%clk 0:01:15.8]} 23. c3 {[%clk 0:00:58.2]} 23... Bf5
{[%clk 0:01:09]} 24. Nf3 {[%clk 0:00:55.4]} 24... f6 {[%clk 0:01:03.8]} 25. exf6
{[%clk 0:00:54.5]} 25... exf6 {[%clk 0:00:58]} 26. Nh4 {[%clk 0:00:42.4]} 26...
Bd3 {[%clk 0:00:51.9]} 27. Qe7 {[%clk 0:00:32]} 27... Qf7 {[%clk 0:00:48.7]} 28.
Qd6 {[%clk 0:00:28.3]} 28... g5 {[%clk 0:00:41]} 29. Nf3 {[%clk 0:00:18.4]}
29... Qg6 {[%clk 0:00:40.1]} 30. Re7 {[%clk 0:00:18]} 30... Qxh6 {[%clk
0:00:39.3]} 31. Rae1 {[%clk 0:00:17.6]} 31... g4 {[%clk 0:00:35.8]} 32. Nh2
{[%clk 0:00:17.2]} 32... Qg5 {[%clk 0:00:29.6]} 33. Qc7 {[%clk 0:00:15.8]} 33...
b5 {[%clk 0:00:20.9]} 34. R1e3 {[%clk 0:00:15.6]} 34... Rg8 {[%clk 0:00:15.7]}
35. Rxd3 {[%clk 0:00:13.2]} 1-0